fUSD/lending_fUSD_20240826
["ID","MTS","AMOUNT","RATE_DAILY","PERIOD"]
[336024952,1724670640308,-311.48939823,0.00010542,2]
[336024953,1724670640317,-392.61063228,0.00010542,2]
[336024954,1724670640327,-150.0,0.00010547,2]
[336024955,1724670640337,-150.0,0.00010547,2]
[336024956,1724670640347,-150.0,0.00010547,2]
[336024957,1724670640356,-887.56292452,0.00010554,2]
[336024958,1724670640365,-311.48939823,0.00010554,2]
[336024959,1724670640375,-392.61063228,0.00010554,2]
[336024960,1724670640385,-150.0,0.00010559,2]
[336024961,1724670640394,-150.0,0.00010563,2]
[336024962,1724670640404,-887.56292452,0.00010565,2]
[336024963,1724670640414,-311.48939823,0.00010565,2]
[336024964,1724670640425,-392.61063228,0.00010565,2]
[336024965,1724670640436,-304.288953,0.00010566,2]
[336024966,1724670640446,-420.75566012,0.00010566,2]
[336024967,1724670640455,-887.56292452,0.00010576,2]
[336024968,1724670640467,-311.48939823,0.00010576,2]
[336024969,1724670640479,-392.61063228,0.00010576,2]
[336024970,1724670640488,-160.922,0.00010577,2]
[336024971,1724670640498,-150.0,0.00010578,2]
[336024972,1724670640507,-150.0,0.00010582,2]
[336024973,1724670640517,-887.56292452,0.00010587,2]
[336024974,1724670640527,-199.09020801,0.00010587,2]
[336024975,1724670640539,-112.39919022,0.00010587,2]
[336024976,1724670640548,-392.61063228,0.00010587,2]
[336024977,1724670640557,-150.0,0.00010587,2]
[336024978,1724670640567,-150.0,0.00010594,2]
[336024979,1724670640575,-887.56292452,0.00010598,2]
[336024980,1724670640584,-64.9373628,0.00010598,2]
[336024982,1724670640605,-246.55203543,0.00010598,2]
[336024983,1724670640615,-392.61063228,0.00010598,2]
[336024984,1724670640626,-887.56292452,0.00010609,2]
[336024985,1724670640635,-311.48939823,0.00010609,2]
[336024986,1724670640644,-392.61063228,0.00010609,2]
[336024988,1724670640653,-150.0,0.0001061,2]
[336024990,1724670640663,-887.56292452,0.0001062,2]
[336024992,1724670640672,-311.48939823,0.0001062,2]
[336024993,1724670640683,-392.61063228,0.0001062,2]
[336024994,1724670640692,-150.0,0.0001062,2]
[336024995,1724670640702,-150.0,0.0001062,2]
[336024996,1724670640722,-86.34254535,0.00010625,2]
[336024998,1724670640847,-63.65745465,0.00010625,2]
[336024999,1724670640856,-264.81651529,0.00010631,2]
[336025000,1724670640878,-496.07624443,0.00010631,2]
[336025001,1724670640889,-126.6701648,0.00010631,2]
[336025002,1724670640898,-311.48939823,0.00010631,2]
[336025003,1724670640907,-392.61063228,0.00010631,2]
[336025004,1724670640917,-150.0,0.00010639,2]
[336025005,1724670640927,-150.0,0.00010641,2]
[336025006,1724670640936,-887.56292452,0.00010642,2]
[336025007,1724670640945,-311.48939823,0.00010642,2]
[336025008,1724670640954,-392.61063228,0.00010642,2]
[336025009,1724670640969,-887.56292452,0.00010653,2]
[336025010,1724670640978,-311.48939823,0.00010653,2]
[336025011,1724670640987,-392.61063228,0.00010653,2]
[336025012,1724670640996,-150.0,0.00010657,2]
[336025013,1724670641005,-843.80389463,0.00010664,2]
[336025014,1724670641017,-43.75902989,0.00010664,2]
[336025015,1724670641025,-311.48939823,0.00010664,2]
[336025016,1724670641035,-355.99157188,0.00010664,2]
[336025017,1724670641046,-36.6190604,0.00010664,2]
[336025018,1724670641056,-150.0,0.00010672,2]
[336025019,1724670641065,-874.24594507,0.00010676,2]
[336025020,1724670641099,-13.31697945,0.00010676,2]
[336025021,1724670641109,-311.48939823,0.00010676,2]
[336025022,1724670641119,-392.61063228,0.00010676,2]
[336025023,1724670641130,-150.0,0.00010681,2]
[336025024,1724670641141,-887.56292452,0.00010687,2]
[336025025,1724670641151,-311.48939823,0.00010687,2]
[336025026,1724670641161,-392.61063228,0.00010687,2]
[336025027,1724670641170,-150.0,0.00010687,2]
[336025028,1724670641179,-150.0,0.00010688,2]
[336025029,1724670641189,-150.0,0.00010697,2]
[336025030,1724670641199,-887.56292452,0.00010698,2]
[336025031,1724670641210,-311.48939823,0.00010698,2]
[336025032,1724670641226,-392.61063228,0.00010698,2]
[336025033,1724670641235,-523.8009413,0.00010699,2]
[336025034,1724670641245,-523.80094129,0.00010699,2]
[336025035,1724670641254,-206.06128228,0.00010699,2]
[336025036,1724670641263,-150.0,0.00010704,2]
[336025037,1724670641273,-887.56292452,0.00010709,2]
[336025038,1724670641282,-311.48939823,0.00010709,2]
[336025039,1724670641292,-392.61063228,0.00010709,2]
[336025040,1724670641302,-150.0,0.00010712,2]
[336025041,1724670641312,-150.0,0.00010712,2]
[336025042,1724670641322,-155.0,0.00010713,2]
[336025043,1724670641331,-150.0,0.00010719,2]
[336025044,1724670641341,-887.56292452,0.0001072,2]
[336025045,1724670641350,-311.48939823,0.0001072,2]
[336025046,1724670641360,-392.61063228,0.0001072,2]
[336025047,1724670641369,-887.56292452,0.00010731,2]
[336025048,1724670641378,-311.48939823,0.00010731,2]
[336025049,1724670641387,-392.61063228,0.00010731,2]
[336025050,1724670641397,-150.0,0.00010735,2]
[336025051,1724670641407,-887.56292452,0.00010742,2]
[336025052,1724670641417,-311.48939823,0.00010742,2]
[336025053,1724670641427,-392.61063228,0.00010742,2]
[336025054,1724670641437,-150.0,0.00010742,2]
[336025055,1724670641447,-150.0,0.00010751,2]
[336025056,1724670641457,-887.56292452,0.00010753,2]
[336025057,1724670641467,-311.48939823,0.00010753,2]
[336025058,1724670641476,-392.61063228,0.00010753,2]
[336025059,1724670641487,-150.0,0.00010755,2]
[336025060,1724670641496,-887.56292452,0.00010764,2]
[336025061,1724670641506,-311.48939823,0.00010764,2]
[336025062,1724670641516,-392.61063228,0.00010764,2]
[336025063,1724670641526,-150.0,0.00010767,2]
[336025064,1724670641536,-150.0,0.00010767,2]
[336025065,1724670641547,-150.0,0.00010767,2]
[336025066,1724670641558,-887.56292452,0.00010775,2]
[336025067,1724670641570,-311.48939823,0.00010775,2]
[336025068,1724670641581,-392.61063228,0.00010775,2]
[336025069,1724670641592,-150.0,0.00010782,2]
[336025070,1724670641604,-887.56292452,0.00010787,2]
[336025071,1724670641616,-311.48939823,0.00010787,2]
[336025072,1724670641628,-392.61063228,0.00010787,2]
[336025073,1724670641640,-150.0,0.00010787,2]
[336025074,1724670641650,-1729.318,0.00010796,2]
[336025075,1724670641661,-887.56292452,0.00010798,2]
[336025076,1724670641671,-311.48939823,0.00010798,2]
[336025077,1724670641682,-392.61063228,0.00010798,2]
[336025078,1724670641694,-150.0,0.00010798,2]
[336025079,1724670641706,-374.854,0.00010799,2]
[336025080,1724670641725,-12207.5368,0.00010799,2]
[336025081,1724670641735,-326.1077,0.00010799,2]
[336025082,1724670641747,-3734.9006,0.00010799,2]
[336025083,1724670641758,-2631.7714,0.00010799,2]
[336025084,1724670641769,-3317.5461,0.00010799,2]
[336025085,1724670641780,-291.9067,0.00010799,2]
[336025086,1724670641791,-2352.8943779,0.00010799,2]
[336025087,1724670641803,-150.0,0.00010803,2]
[336025088,1724670641814,-150.0,0.00010803,2]
[336025089,1724670641825,-1000.0,0.00010806,2]
[336025090,1724670641837,-887.56292452,0.00010809,2]
[336025091,1724670641848,-311.48939823,0.00010809,2]
[336025092,1724670641859,-392.61063228,0.00010809,2]
[336025093,1724670641870,-150.0,0.00010813,2]
[336025094,1724670641881,-150.0,0.00010814,2]
[336025095,1724670641892,-887.56292452,0.0001082,2]
[336025096,1724670641903,-311.48939823,0.0001082,2]
[336025097,1724670641913,-392.61063228,0.0001082,2]
[336025098,1724670641925,-150.0,0.00010829,2]
[336025099,1724670641935,-887.56292452,0.00010831,2]
[336025100,1724670641947,-311.48939823,0.00010831,2]
[336025101,1724670641958,-392.61063228,0.00010831,2]
[336025102,1724670641969,-887.56292452,0.00010842,2]
[336025103,1724670641979,-311.48939823,0.00010842,2]
[336025104,1724670641991,-392.61063228,0.00010842,2]
[336025105,1724670642003,-150.0,0.00010845,2]
[336025106,1724670642014,-1299.66487496,0.00010852,2]
[336025107,1724670642026,-887.56292452,0.00010853,2]
[336025108,1724670642036,-311.48939823,0.00010853,2]
[336025109,1724670642048,-392.61063228,0.00010853,2]
[336025110,1724670642059,-7500.0,0.00010858,2]
[336025111,1724670642069,-150.0,0.00010861,2]
[336025112,1724670642079,-887.56292452,0.00010864,2]
[336025113,1724670642089,-311.48939823,0.00010864,2]
[336025114,1724670642099,-392.61063228,0.00010864,2]
[336025115,1724670642110,-150.0,0.00010864,2]
[336025116,1724670642122,-633.03266898,0.0001087,2]
[336025117,1724670642132,-150.0,0.00010871,2]
[336025118,1724670642143,-887.56292452,0.00010875,2]
[336025119,1724670642154,-311.48939823,0.00010875,2]
[336025120,1724670642165,-392.61063228,0.00010875,2]
[336025121,1724670642176,-150.0,0.00010876,2]
[336025122,1724670642187,-31911.7243569,0.0001088,2]
[336025123,1724670642199,-606.64,0.0001088,2]
[336025124,1724670642211,-2546.63,0.0001088,2]
[336025125,1724670642222,-887.56292452,0.00010886,2]
[336025126,1724670642232,-311.48939823,0.00010886,2]
[336025127,1724670642244,-392.61063228,0.00010886,2]
[336025128,1724670642256,-150.0,0.00010886,2]
[336025129,1724670642267,-1801.86,0.0001089,2]
[336025130,1724670642278,-824.46,0.0001089,2]
[336025131,1724670642289,-368.36,0.0001089,2]
[336025132,1724670642300,-2574.03454,0.0001089,2]
[336025133,1724670642312,-150.0,0.00010892,2]
[336025134,1724670642323,-314.251,0.00010896,2]
[336025135,1724670642333,-556.0,0.00010896,2]
[336025136,1724670642342,-447.0,0.00010896,2]
[336025137,1724670642352,-809.0,0.00010896,2]
[336025138,1724670642362,-1138.0,0.00010896,2]
[336025139,1724670642372,-1195.072,0.00010896,2]
[336025140,1724670642382,-552.0,0.00010896,2]
[336025141,1724670642392,-744.346,0.00010896,2]
[336025142,1724670642402,-887.56292452,0.00010898,2]
[336025143,1724670642413,-311.48939823,0.00010898,2]
[336025144,1724670642424,-392.61063228,0.00010898,2]
[336025145,1724670642436,-1116.7609,0.00010899,2]
[336025146,1724670642447,-1250.7404,0.00010899,2]
[336025147,1724670642458,-148555.3688,0.00010899,2]
[336025148,1724670642470,-3208.6693,0.00010899,2]
[336025149,1724670642480,-340.3042,0.00010899,2]
[336025150,1724670642489,-169.12638698,0.00010899,2]
[336025151,1724670642499,-189.68817567,0.00010899,2]
[336025152,1724670642510,-165.1649757,0.00010899,2]
[336025153,1724670642522,-197.31238174,0.00010899,2]
[336025154,1724670642533,-293.57281943,0.00010899,2]
[336025155,1724670642543,-401.92563255,0.00010899,2]
[336025156,1724670642553,-197.31238172,0.000109,2]
[336025157,1724670642565,-813.6030882,0.000109,2]
[336025158,1724670642576,-150.0,0.000109,2]
[336025159,1724670642587,-150.0,0.000109,2]
[336025160,1724670642597,-150.0,0.000109,2]
[336025161,1724670642607,-197.31238172,0.000109,2]
[336025162,1724670642617,-186.6480781,0.000109,2]
[336025163,1724670642628,-1673.0,0.00010901,2]
[336025164,1724670642640,-2583.225,0.00010901,2]
[336025165,1724670642652,-13454.0,0.00010901,2]
[336025166,1724670642663,-150.0,0.00010908,2]
[336025167,1724670642673,-887.56292452,0.00010909,2]
[336025168,1724670642684,-311.48939823,0.00010909,2]
[336025169,1724670642694,-392.61063228,0.00010909,2]
[336025170,1724670642705,-500.0,0.00010912,2]
[336025171,1724670642719,-887.56292452,0.0001092,2]
[336025173,1724670642729,-311.48939823,0.0001092,2]
[336025174,1724670642740,-392.61063228,0.0001092,2]
[336025175,1724670642751,-150.0,0.00010924,2]
[336025176,1724670642761,-150.0,0.00010925,2]
[336025177,1724670642773,-150.0,0.00010928,2]
[336025178,1724670642783,-887.56292452,0.00010931,2]
[336025179,1724670642797,-311.48939823,0.00010931,2]
[336025180,1724670642808,-392.61063228,0.00010931,2]
[336025181,1724670642817,-150.0,0.00010939,2]
[336025182,1724670642827,-887.56292452,0.00010942,2]
[336025183,1724670642838,-311.48939823,0.00010942,2]
[336025184,1724670642847,-392.61063228,0.00010942,2]
[336025186,1724670642858,-3807.31,0.00010949,2]
[336025187,1724670642869,-887.56292452,0.00010953,2]
[336025188,1724670642880,-311.48939823,0.00010953,2]
[336025189,1724670642891,-392.61063228,0.00010953,2]
[336025190,1724670642901,-150.0,0.00010955,2]
[336025192,1724670642913,-503.38062534,0.00010958,2]
[336025193,1724670642923,-500.45451522,0.00010958,2]
[336025194,1724670642933,-500.0,0.00010958,2]
[336025195,1724670642943,-300.0,0.00010958,2]
[336025196,1724670642953,-500.0,0.00010958,2]
[336025197,1724670642965,-500.0,0.00010958,2]
[336025198,1724670642975,-500.0,0.00010958,2]
[336025199,1724670642985,-500.0,0.00010958,2]
[336025201,1724670642995,-500.0,0.00010958,2]
[336025203,1724670643005,-500.0,0.00010958,2]
[336025205,1724670643015,-508.62224011,0.00010958,2]
[336025207,1724670643025,-647.24606801,0.00010958,2]
[336025209,1724670643036,-500.0,0.00010958,2]
[336025211,1724670643046,-500.0,0.00010958,2]
[336025213,1724670643056,-828.85,0.00010958,2]
[336025215,1724670643067,-500.0,0.00010958,2]
[336025217,1724670643077,-536.77143614,0.00010958,2]
[336025220,1724670643087,-1114.08,0.00010958,2]
[336025222,1724670643098,-500.0,0.00010958,2]
[336025224,1724670643108,-500.0,0.00010958,2]
[336025225,1724670643119,-500.0,0.00010958,2]
[336025226,1724670643130,-500.0,0.00010958,2]
[336025227,1724670643140,-500.0,0.00010958,2]
[336025228,1724670643150,-738.21,0.00010958,2]
[336025229,1724670643161,-1579.85,0.00010958,2]
[336025230,1724670643171,-500.0,0.00010958,2]
[336025231,1724670643182,-500.0,0.00010958,2]
[336025232,1724670643192,-500.0,0.00010958,2]
[336025233,1724670643202,-532.80508189,0.00010958,2]
[336025234,1724670643214,-500.0,0.00010958,2]
[336025235,1724670643224,-500.0,0.00010958,2]
[336025236,1724670643234,-2440.71,0.00010958,2]
[336025237,1724670643245,-500.0,0.00010958,2]
[336025238,1724670643256,-500.0,0.00010958,2]
[336025239,1724670643266,-500.0,0.00010958,2]
[336025240,1724670643276,-500.0,0.00010958,2]
[336025241,1724670643286,-500.0,0.00010958,2]
[336025242,1724670643296,-830.07,0.00010958,2]
[336025243,1724670643306,-503.10668718,0.00010958,2]
[336025244,1724670643316,-500.0,0.00010958,2]
[336025245,1724670643326,-506.99148968,0.00010958,2]
[336025246,1724670643336,-500.0,0.00010958,2]
[336025247,1724670643345,-522.3,0.00010958,2]
[336025248,1724670643356,-500.0,0.00010958,2]
[336025249,1724670643367,-500.0,0.00010958,2]
[336025250,1724670643377,-1435.7,0.00010958,2]
[336025251,1724670643387,-500.0,0.00010958,2]
[336025252,1724670643397,-500.0,0.00010958,2]
[336025253,1724670643408,-500.0,0.00010958,2]
[336025254,1724670643418,-500.0,0.00010958,2]
[336025255,1724670643428,-500.0,0.00010958,2]
[336025256,1724670643439,-285.2,0.00010958,2]
[336025257,1724670643450,-500.0,0.00010958,2]
[336025258,1724670643460,-500.0,0.00010958,2]
[336025259,1724670643471,-610.89943007,0.00010958,2]
[336025260,1724670643481,-500.0,0.00010958,2]
[336025261,1724670643491,-500.0,0.00010958,2]
[336025262,1724670643502,-500.0,0.00010958,2]
[336025263,1724670643512,-155.46765337,0.00010958,2]
[336025264,1724670643522,-500.0,0.00010958,2]
[336025265,1724670643533,-500.0,0.00010958,2]
[336025266,1724670643543,-500.0,0.00010958,2]
[336025267,1724670643554,-500.0,0.00010958,2]
[336025268,1724670643564,-505.99959904,0.00010958,2]
[336025269,1724670643575,-500.0,0.00010958,2]
[336025270,1724670643585,-500.0,0.00010958,2]
[336025271,1724670643595,-500.0,0.00010958,2]
[336025272,1724670643605,-501.4324344,0.00010958,2]
[336025273,1724670643615,-500.0,0.00010958,2]
[336025274,1724670643625,-500.0,0.00010958,2]
[336025275,1724670643636,-500.0,0.00010958,2]
[336025276,1724670643646,-500.0,0.00010958,2]
[336025277,1724670643656,-500.0,0.00010958,2]
[336025278,1724670643667,-500.0,0.00010958,2]
[336025280,1724670643677,-500.0,0.00010958,2]
[336025282,1724670643687,-500.0,0.00010958,2]
[336025284,1724670643698,-503.54588913,0.00010958,2]
[336025286,1724670643712,-500.0,0.00010958,2]
[336025288,1724670643722,-500.0,0.00010958,2]
[336025290,1724670643732,-500.0,0.00010958,2]
[336025292,1724670643742,-500.0,0.00010958,2]
[336025295,1724670643754,-500.0,0.00010958,2]
[336025297,1724670643764,-500.0,0.00010958,2]
[336025299,1724670643774,-500.0,0.00010958,2]
[336025301,1724670643785,-500.0,0.00010958,2]
[336025303,1724670643795,-500.0,0.00010958,2]
[336025305,1724670643805,-500.0,0.00010958,2]
[336025307,1724670643815,-500.0,0.00010958,2]
[336025310,1724670643826,-500.0,0.00010958,2]
[336025312,1724670643836,-500.0,0.00010958,2]
[336025314,1724670643848,-500.0,0.00010958,2]
[336025316,1724670643859,-500.0,0.00010958,2]
[336025318,1724670643870,-500.0,0.00010958,2]
[336025320,1724670643880,-500.0,0.00010958,2]
[336025322,1724670643891,-500.0,0.00010958,2]
[336025325,1724670643902,-500.0,0.00010958,2]
[336025327,1724670643913,-500.0,0.00010958,2]
[336025329,1724670643922,-500.0,0.00010958,2]
[336025331,1724670643932,-500.0,0.00010958,2]
[336025333,1724670643943,-500.0,0.00010958,2]
[336025335,1724670643953,-500.0,0.00010958,2]
[336025337,1724670643963,-500.0,0.00010958,2]
[336025339,1724670643973,-500.0,0.00010958,2]
[336025341,1724670643983,-500.0,0.00010958,2]
[336025343,1724670643994,-500.0,0.00010958,2]
[336025345,1724670644004,-289.5615741,0.00010958,2]
[336025347,1724670644013,-500.0,0.00010958,2]
[336025349,1724670644024,-511.06,0.00010958,2]
[336025351,1724670644034,-500.0,0.00010958,2]
[336025353,1724670644045,-500.0,0.00010958,2]
[336025355,1724670644055,-500.0,0.00010958,2]
[336025357,1724670644064,-3377.56,0.00010958,2]
[336025359,1724670644074,-500.0,0.00010958,2]
[336025361,1724670644084,-500.0,0.00010958,2]
[336025363,1724670644094,-500.0,0.00010958,2]
[336025364,1724670644103,-500.0,0.00010958,2]
[336025365,1724670644113,-500.0,0.00010958,2]
[336025366,1724670644123,-500.0,0.00010958,2]
[336025367,1724670644133,-500.0,0.00010958,2]
[336025368,1724670644143,-500.0,0.00010958,2]
[336025369,1724670644154,-500.0,0.00010958,2]
[336025370,1724670644164,-500.0,0.00010958,2]
[336025371,1724670644174,-500.0,0.00010958,2]
[336025372,1724670644185,-438.29875796,0.00010958,2]
[336025373,1724670644195,-500.0,0.00010958,2]
[336025374,1724670644205,-500.0,0.00010958,2]
[336025375,1724670644215,-500.0,0.00010958,2]
[336025376,1724670644225,-500.0,0.00010958,2]
[336025377,1724670644235,-522.26249783,0.00010958,2]
[336025378,1724670644246,-500.0,0.00010958,2]
[336025379,1724670644255,-500.0,0.00010958,2]
[336025380,1724670644266,-500.0,0.00010958,2]
[336025381,1724670644276,-500.0,0.00010958,2]
[336025382,1724670644286,-500.0,0.00010958,2]
[336025383,1724670644296,-500.0,0.00010958,2]
[336025384,1724670644306,-1330.19,0.00010958,2]
[336025385,1724670644316,-500.0,0.00010958,2]
[336025386,1724670644326,-500.0,0.00010958,2]
[336025387,1724670644337,-500.0,0.00010958,2]
[336025388,1724670644347,-500.0,0.00010958,2]
[336025389,1724670644357,-514.36067339,0.00010958,2]
[336025390,1724670644367,-500.0,0.00010958,2]
[336025391,1724670644378,-500.0,0.00010958,2]
[336025392,1724670644389,-500.0,0.00010958,2]
[336025393,1724670644399,-500.0,0.00010958,2]
[336025394,1724670644409,-500.0,0.00010958,2]
[336025395,1724670644420,-778.42,0.00010958,2]
[336025396,1724670644430,-500.0,0.00010958,2]
[336025397,1724670644441,-500.0,0.00010958,2]
[336025398,1724670644451,-500.0,0.00010958,2]
[336025399,1724670644462,-500.0,0.00010958,2]
[336025400,1724670644472,-500.0,0.00010958,2]
[336025401,1724670644483,-610.16,0.00010958,2]
[336025402,1724670644493,-500.0,0.00010958,2]
[336025403,1724670644503,-500.0,0.00010958,2]
[336025404,1724670644513,-500.0,0.00010958,2]
[336025405,1724670644524,-500.0,0.00010958,2]
[336025406,1724670644535,-500.0,0.00010958,2]
[336025407,1724670644545,-500.0,0.00010958,2]
[336025408,1724670644555,-500.0,0.00010958,2]
[336025409,1724670644565,-500.0,0.00010958,2]
[336025410,1724670644575,-500.0,0.00010958,2]
[336025411,1724670644585,-1891.67,0.00010958,2]
[336025412,1724670644595,-500.0,0.00010958,2]
[336025413,1724670644605,-271.4606256,0.00010958,2]
[336025414,1724670644615,-623.08789178,0.00010958,2]
[336025415,1724670644625,-500.0,0.00010958,2]
[336025416,1724670644635,-500.0,0.00010958,2]
[336025417,1724670644645,-500.0,0.00010958,2]
[336025418,1724670644655,-480.000001,0.00010958,2]
[336025419,1724670644665,-267.42747482,0.00010958,2]
[336025420,1724670644676,-500.0,0.00010958,2]
[336025421,1724670644686,-500.0,0.00010958,2]
[336025422,1724670644696,-501.36226293,0.00010958,2]
[336025423,1724670644709,-500.0,0.00010958,2]
[336025424,1724670644721,-715.29,0.00010958,2]
[336025425,1724670644732,-500.0,0.00010958,2]
[336025426,1724670644743,-500.0,0.00010958,2]
[336025427,1724670644755,-512.30673835,0.00010958,2]
[336025428,1724670644765,-524.21080693,0.00010958,2]
[336025429,1724670644776,-500.0,0.00010958,2]
[336025430,1724670644786,-898.14,0.00010958,2]
[336025431,1724670644797,-290.4303454,0.00010958,2]
[336025432,1724670644808,-500.0,0.00010958,2]
[336025433,1724670644818,-500.0,0.00010958,2]
[336025434,1724670644828,-882.02,0.00010958,2]
[336025435,1724670644839,-599.75015521,0.00010958,2]
[336025436,1724670644849,-1871.11,0.00010958,2]
[336025437,1724670644859,-500.0,0.00010958,2]
[336025438,1724670645347,-500.0,0.00010958,2]
[336025439,1724670645358,-500.0,0.00010958,2]
[336025440,1724670645368,-1853.87,0.00010958,2]
[336025441,1724670645378,-500.0,0.00010958,2]
[336025442,1724670645388,-500.0,0.00010958,2]
[336025443,1724670645398,-343.49127605,0.00010958,2]
[336025444,1724670645407,-500.0,0.00010958,2]
[336025445,1724670645418,-500.0,0.00010958,2]
[336025446,1724670645427,-500.0,0.00010958,2]
[336025447,1724670645437,-500.0,0.00010958,2]
[336025448,1724670645447,-500.0,0.00010958,2]
[336025449,1724670645458,-537.55,0.00010958,2]
[336025450,1724670645470,-500.0,0.00010958,2]
[336025451,1724670645480,-513.36141261,0.00010958,2]
[336025452,1724670645490,-500.0,0.00010958,2]
[336025453,1724670645500,-500.0,0.00010958,2]
[336025454,1724670645509,-500.0,0.00010958,2]
[336025455,1724670645519,-518.58393763,0.00010958,2]
[336025456,1724670645529,-407.50179228,0.00010958,2]
[336025457,1724670645539,-500.0,0.00010958,2]
[336025458,1724670645548,-1422.43,0.00010958,2]
[336025459,1724670645558,-558.82758612,0.00010958,2]
[336025460,1724670645568,-500.0,0.00010958,2]
[336025461,1724670645578,-500.0,0.00010958,2]
[336025462,1724670645588,-500.0,0.00010958,2]
[336025463,1724670645598,-956.72,0.00010958,2]
[336025464,1724670645608,-956.72,0.00010958,2]
[336025465,1724670645618,-500.0,0.00010958,2]
[336025466,1724670645629,-500.0,0.00010958,2]
[336025467,1724670645639,-500.0,0.00010958,2]
[336025468,1724670645649,-505.53243995,0.00010958,2]
[336025469,1724670645659,-500.0,0.00010958,2]
[336025470,1724670645668,-500.0,0.00010958,2]
[336025471,1724670645679,-500.0,0.00010958,2]
[336025472,1724670645688,-500.0,0.00010958,2]
[336025473,1724670645698,-1067.73,0.00010958,2]
[336025474,1724670645712,-1249.49,0.00010958,2]
[336025475,1724670645722,-500.0,0.00010958,2]
[336025476,1724670645731,-500.0,0.00010958,2]
[336025477,1724670645741,-203.96334151,0.00010958,2]
[336025478,1724670645751,-500.0,0.00010958,2]
[336025479,1724670645761,-500.0,0.00010958,2]
[336025480,1724670645771,-1213.51,0.00010958,2]
[336025481,1724670645780,-500.0,0.00010958,2]
[336025482,1724670645790,-559.31000001,0.00010958,2]
[336025483,1724670645800,-500.0,0.00010958,2]
[336025486,1724670645811,-500.0,0.00010958,2]
[336025488,1724670645821,-500.0,0.00010958,2]
[336025491,1724670645832,-500.0,0.00010958,2]
[336025493,1724670645842,-500.0,0.00010958,2]
[336025495,1724670645852,-1182.51,0.00010958,2]
[336025497,1724670645862,-500.0,0.00010958,2]
[336025499,1724670645872,-500.0,0.00010958,2]
[336025501,1724670645882,-500.0,0.00010958,2]
[336025504,1724670645893,-500.0,0.00010958,2]
[336025506,1724670645904,-500.0,0.00010958,2]
[336025508,1724670645914,-1361.49,0.00010958,2]
[336025509,1724670645924,-500.0,0.00010958,2]
[336025510,1724670645934,-500.0,0.00010958,2]
[336025511,1724670645944,-500.0,0.00010958,2]
[336025512,1724670645956,-500.0,0.00010958,2]
[336025513,1724670645967,-500.0,0.00010958,2]
[336025514,1724670645977,-500.0,0.00010958,2]
[336025515,1724670645986,-1705.47,0.00010958,2]
[336025516,1724670645996,-500.0,0.00010958,2]
[336025517,1724670646007,-500.0,0.00010958,2]
[336025518,1724670646017,-500.0,0.00010958,2]
[336025519,1724670646027,-500.0,0.00010958,2]
[336025520,1724670646037,-500.0,0.00010958,2]
[336025521,1724670646047,-500.0,0.00010958,2]
[336025522,1724670646058,-500.0,0.00010958,2]
[336025523,1724670646068,-665.14,0.00010958,2]
[336025524,1724670646078,-500.0,0.00010958,2]
[336025525,1724670646087,-500.0,0.00010958,2]
[336025526,1724670646097,-500.0,0.00010958,2]
[336025527,1724670646106,-500.0,0.00010958,2]
[336025528,1724670646116,-500.0,0.00010958,2]
[336025529,1724670646126,-500.0,0.00010958,2]
[336025530,1724670646137,-500.0,0.00010958,2]